[Event "FIDE WSTC Open 50 2025"]
[Site "Prague"]
[Date "2025.02.17"]
[Round "1.39"]
[White "Jaderberg, Bjorn"]
[Black "Korenek, Frantisek"]
[Result "0-1"]
[Annotator "NA"]
[ECO "D00"]
[WhiteElo "2134"]
[BlackElo "1940"]
[PlyCount "44"]
[EventDate "2025.02.17"]
[EventType "team-tourn"]
[EventCountry "CZE"]
[SourceTitle "playchess.com"]
[Source "ChessBase"]
[SourceQuality "1"]
[TimeControl "40/5400+30:1800+30"]

1. d4 {[%emt 0:00:02]} d5 {[%emt 0:00:10]} 2. Nc3 {[%emt 0:00:12]} Nf6 {[%emt 0:00:51]} 3. Bf4 {[%emt 0:00:17]} c6 {[%emt 0:00:22]} 4. e3 {[%emt 0:00:43]} Bf5 {[%emt 0:00:42]} 5. f3 {[%emt 0:00:32]} e6 {[%emt 0:00:18]} 6. g4 {[%emt 0:00:49]} Bg6 {[%emt 0:00:33]} 7. h4 {[%emt 0:00:42]} h6 {[%emt 0:00:26]} 8. Bd3 {[%emt 0:01:16]} Bxd3 {[%emt 0:00:36]} 9. Qxd3 {[%emt 0:00:41]} Bd6 {[%emt 0:00:10]} 10. Nge2 {[%emt 0:01:00]} Bxf4 {[%emt 0:04:28]} 11. exf4 {[%emt 0:02:39]} Qd6 {[%emt 0:02:20]} 12. O-O-O {[%emt 0:04:17]} Nbd7 {[%emt 0:00:32]} 13. g5 {[%emt 0:16:40]} Nh5 {[%emt 0:02:07]} 14. f5 {[%emt 0:01:56]} e5 {[%emt 0:05:05]} 15. dxe5 {[%emt 0:03:55]} Qxe5 {[%emt 0:05:28]} 16. Kb1 {[%emt 0:07:13]} O-O-O {[%emt 0:00:30]} 17. Qd4 {[%emt 0:06:31]} Qxd4 {[%emt 0:04:00]} 18. Rxd4 {[%emt 0:04:32]} Rde8 {[%emt 0:02:47]} 19. f4 {[%emt 0:04:05]} Re3 {[%emt 0:00:56]} 20. Nc1 {[%emt 0:02:59]} Ng3 {[%emt 0:00:43]} 21. Rh3 {[%emt 0:05:19]} Nxf5 {[%emt 0:00:25]} 22. Rxe3 {[%emt 0:01:26]} Nxe3 {[%emt 0:00:08]} 0-1

[Event "FIDE WSTC Open 50 2025"]
[Site "Prague"]
[Date "2025.02.17"]
[Round "1.40"]
[White "Hejda, Antonin"]
[Black "Wengholm, Anders"]
[Result "1/2-1/2"]
[Annotator "NA"]
[ECO "A48"]
[WhiteElo "1900"]
[BlackElo "2132"]
[PlyCount "48"]
[EventDate "2025.02.17"]
[EventType "team-tourn"]
[EventCountry "CZE"]
[SourceTitle "playchess.com"]
[Source "ChessBase"]
[SourceQuality "1"]
[TimeControl "40/5400+30:1800+30"]

1. d4 {[%emt 0:00:06]} Nf6 {[%emt 0:00:13]} 2. Nf3 {[%emt 0:00:10]} g6 {[%emt 0:00:28]} 3. c4 {[%emt 0:00:21]} Bg7 {[%emt 0:00:16]} 4. Nc3 {[%emt 0:00:10]} O-O {[%emt 0:00:13]} 5. Bf4 {[%emt 0:03:58]} c5 {[%emt 0:02:06]} 6. d5 {[%emt 0:00:38]} d6 {[%emt 0:00:41]} 7. e3 {[%emt 0:00:28]} Qa5 {[%emt 0:14:37]} 8. Qd2 {[%emt 0:14:45]} e5 {[%emt 0:20:31]} 9. Bg5 {[%emt 0:11:46]} Qb6 {[%emt 0:07:25]} 10. Be2 {[%emt 0:06:16]} h6 {[%emt 0:04:00]} 11. Bh4 {[%emt 0:00:13]} g5 {[%emt 0:08:49]} 12. Bg3 {[%emt 0:00:06]} Nh5 {[%emt 0:00:52]} 13. e4 {[%emt 0:03:54]} f5 {[%emt 0:04:13]} 14. exf5 {[%emt 0:08:55]} Bxf5 {[%emt 0:00:16]} 15. O-O {[%emt 0:00:56]} Nf4 {[%emt 0:10:16]} 16. Bxf4 {[%emt 0:06:50]} exf4 {[%emt 0:00:09]} 17. Rac1 {[%emt 0:00:37]} Qd8 {[%emt 0:02:52]} 18. Bd3 {[%emt 0:00:14]} g4 {[%emt 0:00:46]} 19. Ne1 {[%emt 0:00:39]} Nd7 {[%emt 0:13:26]} 20. Bxf5 {[%emt 0:00:28]} Rxf5 {[%emt 0:00:06]} 21. Nd3 {[%emt 0:01:26]} Qf8 22. Ne4 {[%emt 0:00:31]} Bd4 {[%emt 0:01:10]} 23. Kh1 {[%emt 0:00:49]} Re8 {[%emt 0:01:35]} 24. Rce1 {[%emt 0:00:55]} Ne5 {[%emt 0:01:37]} 1/2-1/2

[Event "FIDE WSTC Open 50 2025"]
[Site "Prague"]
[Date "2025.02.18"]
[Round "2.1"]
[White "Ehlvest, Jaan"]
[Black "Polak, Tomas"]
[Result "1/2-1/2"]
[Annotator "ChessBase"]
[ECO "E11"]
[WhiteElo "2531"]
[BlackElo "2463"]
[PlyCount "91"]
[EventDate "2025.02.17"]
[EventType "team-tourn"]
[EventCountry "CZE"]
[SourceTitle "playchess.com"]
[Source "ChessBase"]
[SourceQuality "1"]
[TimeControl "40/5400+30:1800+30"]

1. d4 {[%emt 0:00:04]} Nf6 {[%emt 0:00:11]} 2. c4 {[%emt 0:00:10]} e6 {[%emt 0:00:20]} 3. Nf3 {[%emt 0:00:25]} Bb4+ {[%emt 0:01:40]} 4. Bd2 {[%emt 0:00:04]} a5 {[%emt 0:00:57]} 5. Nc3 {[%emt 0:00:10]} O-O {[%emt 0:01:32]} 6. Bg5 {[%emt 0:00:09]} h6 {[%emt 0:01:22]} 7. Bh4 {[%emt 0:08:08]} d5 {[%emt 0:02:27]} 8. e3 {[%emt 0:01:37]} Nbd7 {[%emt 0:13:12]} 9. Rc1 {[%emt 0:03:23]} Be7 {[%emt 0:14:02]} 10. Bd3 {[%emt 0:23:21]} dxc4 {[%emt 0:08:48]} 11. Bxc4 {[%emt 0:00:21]} b6 {[%emt 0:00:17]} 12. O-O {[%emt 0:02:15]} Bb7 {[%emt 0:00:12]} 13. Qe2 {[%emt 0:02:16]} Ne4 {[%emt 0:04:19]} 14. Bg3 {[%emt 0:02:24]} Nxg3 {[%emt 0:05:15]} 15. hxg3 {[%emt 0:00:10]} Bd6 {[%emt 0:00:12]} 16. Rfd1 {[%emt 0:08:36]} Qe7 {[%emt 0:16:18]} 17. Nh4 {[%emt 0:02:38]} c6 {[%emt 0:08:34]} 18. e4 {[%emt 0:01:44]} Bb4 {[%emt 0:01:26]} 19. e5 {[%emt 0:05:09]} Bxc3 {[%emt 0:00:21]} 20. bxc3 {[%emt 0:00:11]} Rfd8 {[%emt 0:08:45]} 21. f4 {[%emt 0:01:48]} Nf8 {[%emt 0:00:27]} 22. f5 {[%emt 0:09:12]} Qg5 {[%emt 0:00:25]} 23. Qf3 {[%emt 0:00:10]} Ba6 {[%emt 0:01:58]} 24. Bxa6 {[%emt 0:11:42]} Rxa6 {[%emt 0:00:05]} 25. fxe6 {[%emt 0:00:37]} fxe6 {[%emt 0:03:48]} 26. Qxc6 {[%emt 0:04:08]} Qxg3 {[%emt 0:00:42]} 27. Qe4 {[%emt 0:05:06]} Nh7 {[%emt 0:00:54]} 28. Rd3 {[%emt 0:00:49]} Ng5 {[%emt 0:00:13]} 29. Rxg3 {[%emt 0:01:44]} Nxe4 {[%emt 0:00:09]} 30. Re3 {[%emt 0:00:21]} Nd2 {[%emt 0:01:04]} 31. Re2 {[%emt 0:01:51]} Nc4 {[%emt 0:00:08]} 32. Rb1 {[%emt 0:00:21]} Ra7 {[%emt 0:01:13]} 33. a4 {[%emt 0:01:47]} Rc8 {[%emt 0:02:48]} 34. Nf3 {[%emt 0:00:29]} Rd7 {[%emt 0:01:07]} 35. Rb3 {[%emt 0:01:20]} Kf8 {[%emt 0:00:49]} 36. Nd2 {[%emt 0:01:13]} Nxd2 {[%emt 0:01:11]} 37. Rxd2 {[%emt 0:00:05]} Ke7 {[%emt 0:00:16]} 38. Kf2 {[%emt 0:00:27]} Rdc7 {[%emt 0:00:28]} 39. Rc2 {[%emt 0:02:17]} Rc4 {[%emt 0:00:48]} 40. Ke3 {[%emt 0:01:01]} Rb4 41. cxb4 {[%emt 0:13:44]} Rxc2 {[%emt 0:01:15]} 42. bxa5 {[%emt 0:00:04]} bxa5 {[%emt 0:00:07]} 43. Rb7+ {[%emt 0:00:36]} Kf8 {[%emt 0:00:25]} 44. Rb8+ {[%emt 0:02:51]} Kf7 {[%emt 0:01:00]} 45. Rb7+ {[%emt 0:00:05]} Kf8 {[%emt 0:00:10]} 46. Rb8+ 1/2-1/2

[Event "FIDE WSTC Open 50 2025"]
[Site "Prague"]
[Date "2025.02.18"]
[Round "2.2"]
[White "Obsivac, Josef"]
[Black "Shabalov, Alexander"]
[Result "1/2-1/2"]
[Annotator "ChessBase"]
[ECO "A40"]
[WhiteElo "2262"]
[BlackElo "2471"]
[PlyCount "88"]
[EventDate "2025.02.17"]
[EventType "team-tourn"]
[EventCountry "CZE"]
[SourceTitle "playchess.com"]
[Source "ChessBase"]
[SourceQuality "1"]
[TimeControl "40/5400+30:1800+30"]

1. d4 {[%emt 0:00:04]} e6 {[%emt 0:00:13]} 2. c4 {[%emt 0:00:23]} b6 {[%emt 0:00:05]} 3. Nf3 {[%emt 0:01:45]} Bb7 {[%emt 0:00:09]} 4. Nc3 {[%emt 0:03:35]} f5 {[%emt 0:01:46]} 5. g3 {[%emt 0:04:29]} Nf6 {[%emt 0:00:29]} 6. Bg2 {[%emt 0:00:10]} g6 {[%emt 0:00:23]} 7. O-O {[%emt 0:01:03]} Bg7 {[%emt 0:00:05]} 8. d5 {[%emt 0:01:46]} O-O {[%emt 0:02:09]} 9. Bf4 {[%emt 0:08:45]} Na6 {[%emt 0:02:24]} 10. Rc1 {[%emt 0:04:16]} Nc5 {[%emt 0:15:13]} 11. b4 {[%emt 0:14:16]} Nce4 {[%emt 0:03:04]} 12. Nb5 {[%emt 0:00:09]} exd5 {[%emt 0:13:33]} 13. Bxc7 {[%emt 0:00:26]} Qe7 {[%emt 0:00:40]} 14. c5 {[%emt 0:02:33]} Bc6 {[%emt 0:09:40]} 15. Nfd4 {[%emt 0:07:12]} bxc5 {[%emt 0:12:40]} 16. bxc5 {[%emt 0:00:10]} Rfc8 {[%emt 0:00:07]} 17. Bd6 {[%emt 0:08:18]} Qd8 {[%emt 0:01:10]} 18. Bf4 {[%emt 0:01:35]} Qa5 {[%emt 0:05:26]} 19. Qd3 {[%emt 0:10:06]} a6 {[%emt 0:02:42]} 20. Nd6 {[%emt 0:01:41]} Rf8 {[%emt 0:00:47]} 21. Nb3 {[%emt 0:09:21]} Qa4 {[%emt 0:02:35]} 22. Rc2 {[%emt 0:02:17]} Ng4 {[%emt 0:04:48]} 23. f3 {[%emt 0:05:49]} g5 {[%emt 0:07:41]} 24. fxg4 {[%emt 0:01:27]} gxf4 {[%emt 0:00:59]} 25. Rxf4 {[%emt 0:00:22]} fxg4 {[%emt 0:03:08]} 26. Rxg4 {[%emt 0:01:19]} Kh8 {[%emt 0:00:06]} 27. Nxe4 {[%emt 0:05:00]} dxe4 {[%emt 0:05:39]} 28. Bxe4 {[%emt 0:00:20]} Rab8 {[%emt 0:03:29]} 29. Bf3 {[%emt 0:01:47]} Rb4 {[%emt 0:00:49]} 30. Bxc6 {[%emt 0:00:57]} dxc6 {[%emt 0:00:25]} 31. Rgc4 {[%emt 0:02:25]} Qb5 {[%emt 0:01:33]} 32. Qe4 {[%emt 0:00:48]} Rxc4 {[%emt 0:00:28]} 33. Rxc4 {[%emt 0:00:26]} Qb7 {[%emt 0:00:16]} 34. Qe6 {[%emt 0:00:49]} Rf6 {[%emt 0:00:28]} 35. Qe8+ {[%emt 0:00:13]} Rf8 {[%emt 0:00:04]} 36. Qe6 {[%emt 0:00:18]} Rf6 {[%emt 0:00:04]} 37. Qg4 {[%emt 0:00:18]} Bh6 {[%emt 0:02:04]} 38. Rc3 {[%emt 0:01:33]} Qe7 {[%emt 0:00:42]} 39. Rd3 {[%emt 0:01:03]} Be3+ {[%emt 0:00:58]} 40. Kg2 {[%emt 0:00:23]} Qf8 {[%emt 0:00:57]} 41. Rd1 {[%emt 0:24:40]} Rf2+ {[%emt 0:09:09]} 42. Kh3 {[%emt 0:00:02]} Rf6 {[%emt 0:00:55]} 43. Kg2 {[%emt 0:00:21]} Rf2+ {[%emt 0:05:22]} 44. Kh3 {[%emt 0:00:02]} Rf6 {[%emt 0:00:06]} 1/2-1/2

[Event "FIDE WSTC Open 50 2025"]
[Site "Prague"]
[Date "2025.02.18"]
[Round "2.3"]
[White "Novikov, Igor"]
[Black "Holemar, David"]
[Result "0-1"]
[Annotator "ChessBase"]
[ECO "E10"]
[WhiteElo "2490"]
[BlackElo "2150"]
[PlyCount "94"]
[EventDate "2025.02.17"]
[EventType "team-tourn"]
[EventCountry "CZE"]
[SourceTitle "playchess.com"]
[Source "ChessBase"]
[SourceQuality "1"]
[TimeControl "40/5400+30:1800+30"]

1. d4 {[%emt 0:00:04]} Nf6 {[%emt 0:00:09]} 2. c4 {[%emt 0:00:10]} e6 {[%emt 0:00:06]} 3. Nf3 {[%emt 0:00:14]} c5 {[%emt 0:00:07]} 4. d5 {[%emt 0:00:14]} b5 {[%emt 0:00:35]} 5. dxe6 {[%emt 0:05:37]} fxe6 {[%emt 0:00:09]} 6. cxb5 {[%emt 0:00:14]} d5 {[%emt 0:00:06]} 7. g3 {[%emt 0:04:18]} Bd6 {[%emt 0:04:48]} 8. Nc3 {[%emt 0:03:06]} d4 {[%emt 0:15:09]} 9. Na4 {[%emt 0:02:49]} O-O {[%emt 0:08:46]} 10. Bg2 {[%emt 0:06:01]} Bb7 {[%emt 0:01:11]} 11. b4 {[%emt 0:07:49]} cxb4 {[%emt 0:05:10]} 12. Qxd4 {[%emt 0:00:37]} e5 {[%emt 0:01:16]} 13. Qe3 {[%emt 0:17:14]} Qa5 {[%emt 0:10:38]} 14. Nc5 {[%emt 0:05:18]} Bd5 {[%emt 0:04:43]} 15. O-O {[%emt 0:08:33]} Qxb5 {[%emt 0:00:30]} 16. Ne6 {[%emt 0:03:19]} Rf7 {[%emt 0:21:36]} 17. Rd1 {[%emt 0:15:46]} Nbd7 {[%emt 0:08:25]} 18. Nfg5 {[%emt 0:04:04]} Re7 {[%emt 0:02:52]} 19. Bxd5 {[%emt 0:09:02]} Nxd5 {[%emt 0:00:11]} 20. Qb3 {[%emt 0:00:12]} N7f6 {[%emt 0:01:20]} 21. Be3 {[%emt 0:02:57]} Kh8 {[%emt 0:02:09]} 22. Ne4 {[%emt 0:02:17]} Nxe4 {[%emt 0:00:44]} 23. Rxd5 {[%emt 0:00:03]} Qxe2 {[%emt 0:04:54]} 24. Ng5 {[%emt 0:00:10]} Nxg5 {[%emt 0:00:43]} 25. Bxg5 {[%emt 0:00:03]} Re6 {[%emt 0:00:16]} 26. Rad1 {[%emt 0:00:17]} Bf8 {[%emt 0:02:27]} 27. Rd7 {[%emt 0:02:05]} Qg4 {[%emt 0:01:16]} 28. Be3 {[%emt 0:00:11]} a5 {[%emt 0:00:40]} 29. Qd5 {[%emt 0:01:06]} Ree8 {[%emt 0:00:09]} 30. Bc5 {[%emt 0:00:33]} Bxc5 {[%emt 0:01:38]} 31. Qxc5 {[%emt 0:00:02]} h6 {[%emt 0:00:48]} 32. R1d6 {[%emt 0:00:52]} Qe4 {[%emt 0:01:15]} 33. Qc1 {[%emt 0:00:33]} Qh7 {[%emt 0:00:31]} 34. Rc7 {[%emt 0:00:47]} Rad8 {[%emt 0:00:56]} 35. Qc6 {[%emt 0:00:30]} Rf8 {[%emt 0:00:38]} 36. Rf7 {[%emt 0:00:47]} Qb1+ {[%emt 0:00:56]} 37. Kg2 {[%emt 0:00:02]} Rxf7 {[%emt 0:00:10]} 38. Rxd8+ {[%emt 0:00:04]} Kh7 {[%emt 0:00:05]} 39. Qa8 {[%emt 0:00:37]} Qf5 {[%emt 0:00:24]} 40. Rd2 {[%emt 0:00:52]} e4 {[%emt 0:00:28]} 41. Qd5 {[%emt 0:07:14]} Qf3+ {[%emt 0:03:54]} 42. Kg1 {[%emt 0:00:06]} a4 {[%emt 0:00:54]} 43. Qc4 {[%emt 0:04:49]} b3 {[%emt 0:04:29]} 44. axb3 {[%emt 0:02:23]} axb3 {[%emt 0:00:08]} 45. Qc5 {[%emt 0:00:32]} e3 {[%emt 0:05:15]} 46. Qxe3 {[%emt 0:01:11]} Qxe3 {[%emt 0:00:17]} 47. fxe3 {[%emt 0:00:04]} Ra7 {[%emt 0:00:06]} 0-1

[Event "FIDE WSTC Open 50 2025"]
[Site "Prague"]
[Date "2025.02.18"]
[Round "2.4"]
[White "Skacelik, Petr"]
[Black "Rachels, Stuart"]
[Result "0-1"]
[Annotator "ChessBase"]
[ECO "D20"]
[WhiteElo "2132"]
[BlackElo "2466"]
[PlyCount "94"]
[EventDate "2025.02.17"]
[EventType "team-tourn"]
[EventCountry "CZE"]
[SourceTitle "playchess.com"]
[Source "ChessBase"]
[SourceQuality "1"]
[TimeControl "40/5400+30:1800+30"]

1. d4 {[%emt 0:00:02]} d5 {[%emt 0:00:04]} 2. c4 {[%emt 0:00:04]} dxc4 {[%emt 0:00:07]} 3. e4 {[%emt 0:00:40]} e5 {[%emt 0:00:06]} 4. Nf3 {[%emt 0:00:29]} Bb4+ {[%emt 0:00:09]} 5. Bd2 {[%emt 0:01:32]} Bxd2+ {[%emt 0:00:08]} 6. Qxd2 {[%emt 0:00:11]} exd4 {[%emt 0:00:31]} 7. Qxd4 {[%emt 0:01:16]} Nf6 {[%emt 0:00:25]} 8. Qxd8+ {[%emt 0:01:08]} Kxd8 {[%emt 0:00:03]} 9. Nc3 {[%emt 0:00:17]} Be6 {[%emt 0:00:37]} 10. Nd4 {[%emt 0:00:14]} Ke7 {[%emt 0:01:19]} 11. Nxe6 {[%emt 0:01:16]} fxe6 {[%emt 0:00:07]} 12. Bxc4 {[%emt 0:00:08]} Nc6 {[%emt 0:00:46]} 13. f3 {[%emt 0:05:10]} Rad8 {[%emt 0:01:08]} 14. Rd1 {[%emt 0:13:41]} Rxd1+ {[%emt 0:00:36]} 15. Kxd1 {[%emt 0:01:49]} e5 {[%emt 0:01:02]} 16. Ke2 {[%emt 0:03:56]} Nd4+ {[%emt 0:02:12]} 17. Ke3 {[%emt 0:03:51]} c6 {[%emt 0:00:07]} 18. a3 {[%emt 0:05:43]} b5 {[%emt 0:01:35]} 19. Bd3 {[%emt 0:02:32]} a5 {[%emt 0:03:06]} 20. g3 {[%emt 0:05:37]} Rd8 {[%emt 0:02:22]} 21. Rd1 {[%emt 0:03:19]} g5 {[%emt 0:01:39]} 22. a4 {[%emt 0:04:32]} b4 {[%emt 0:09:26]} 23. Ne2 {[%emt 0:00:10]} c5 {[%emt 0:20:59]} 24. Rc1 {[%emt 0:12:58]} Kd6 {[%emt 0:03:19]} 25. h4 {[%emt 0:11:41]} gxh4 {[%emt 0:05:23]} 26. g4 {[%emt 0:04:32]} h5 {[%emt 0:06:05]} 27. g5 {[%emt 0:05:14]} Nh7 {[%emt 0:05:13]} 28. g6 {[%emt 0:07:33]} Nf8 {[%emt 0:03:11]} 29. Rg1 {[%emt 0:03:13]} Nfe6 {[%emt 0:00:30]} 30. f4 {[%emt 0:00:10]} exf4+ {[%emt 0:22:39]} 31. Nxf4 {[%emt 0:00:05]} Nxf4 {[%emt 0:00:07]} 32. Kxf4 {[%emt 0:00:00]} Ne6+ {[%emt 0:00:55]} 33. Ke3 {[%emt 0:00:21]} Rg8 {[%emt 0:02:08]} 34. Rh1 {[%emt 0:00:36]} Ke5 {[%emt 0:03:09]} 35. Rxh4 {[%emt 0:00:41]} Rxg6 {[%emt 0:00:03]} 36. Rxh5+ {[%emt 0:00:11]} Rg5 {[%emt 0:00:01]} 37. Rh3 {[%emt 0:01:06]} Nf4 {[%emt 0:04:35]} 38. Rf3 {[%emt 0:01:04]} Rg4 {[%emt 0:00:02]} 39. Bf1 {[%emt 0:00:23]} Rh4 {[%emt 0:00:45]} 40. Rg3 {[%emt 0:00:51]} Ne6 {[%emt 0:00:30]} 41. Bg2 {[%emt 0:03:00]} c4 {[%emt 0:06:12]} 42. Bf3 {[%emt 0:03:30]} Rh2 {[%emt 0:02:05]} 43. Be2 {[%emt 0:00:38]} c3 {[%emt 0:00:56]} 44. bxc3 {[%emt 0:00:04]} bxc3 {[%emt 0:00:08]} 45. Rg1 {[%emt 0:04:05]} Rh3+ {[%emt 0:01:43]} 46. Bf3 {[%emt 0:00:53]} c2 {[%emt 0:07:23]} 47. Kf2 {[%emt 0:02:28]} Nd4 {[%emt 0:03:01]} 0-1

[Event "FIDE WSTC Open 50 2025"]
[Site "Prague"]
[Date "2025.02.18"]
[Round "2.5"]
[White "Aagaard, Jacob"]
[Black "Adams, Michael"]
[Result "0-1"]
[Annotator "TA"]
[ECO "E38"]
[WhiteElo "2435"]
[BlackElo "2664"]
[PlyCount "82"]
[EventDate "2025.02.17"]
[EventType "team-tourn"]
[EventCountry "CZE"]
[SourceTitle "playchess.com"]
[Source "ChessBase"]
[SourceQuality "1"]
[TimeControl "40/5400+30:1800+30"]

{[%evp 13,82,18,22,34,51,19,25,16,27,17,27,12,12,9,14,6,11,0,7,5,17,0,6,-20,-7,-15,0,0,0,0,13,0,0,0,0,0,0,-33,-12,-41,-16,-33,-27,-67,-80,-67,-68,-85,-78,-102,-77,-97,-107,-114,-112,-139,-95,-118,-116,-154,-140,-241,-225,-245,-129,-137,-59,-1093,-1064,-1362,-1365]} 1. d4 {[%emt 0:00:55]} Nf6 {[%emt 0:00:07]} 2. c4 {[%emt 0:00:08]} e6 {[%emt 0:00:06]} 3. Nc3 {[%emt 0:00:59]} Bb4 {[%emt 0:00:11]} 4. Qc2 {[%emt 0:00:53]} c5 {[%emt 0:00:59]} 5. dxc5 {[%emt 0:00:26]} Bxc5 {[%emt 0:00:09]} 6. Nf3 {[%emt 0:01:02]} Nc6 {[%emt 0:00:44]} 7. a3 {[%emt 0:03:48]} d5 {[%emt 0:07:20]} 8. cxd5 {[%emt 0:05:17] E38: Nimzo-Indian: Classical: 4...c5.} Nxd5 {[%emt 0:09:10]} 9. Bg5 {[%emt 0:13:54]} Qb6 {[%emt 0:09:45]} 10. Ne4 $146 {[%emt 0:08:03] White has an edge.} ({Predecessor:} 10. e3 Bd7 11. Be2 h6 12. Bh4 O-O 13. O-O Nxc3 14. Qxc3 Be7 15. Rfd1 Bxh4 16. Nxh4 {1-0 Eiholt,B (1360)-Kristensen,S (1390) Valby K41 op 0910 2009 (7)}) 10... Be7 {[%emt 0:00:14]} 11. Bxe7 {[%emt 0:00:09]} Ncxe7 {[%emt 0:00:59]} 12. e3 {[%emt 0:11:05][%cal Of1b5]} O-O {[%emt 0:03:54]} 13. Bd3 {[%emt 0:00:18]} Rd8 {[%emt 0:08:54]} 14. O-O {[%emt 0:03:59]} Bd7 {[%emt 0:05:05]} 15. Ne5 {[%emt 0:03:20]} Be8 {[%emt 0:06:18]} 16. Rac1 {[%emt 0:03:13]} h6 {[%emt 0:07:04] The position is symmetric and equal} 17. Nc4 {[%emt 0:03:06]} Qc7 {[%emt 0:00:58]} 18. Qd2 {[%emt 0:02:24]} Nc6 {[%emt 0:02:07]} 19. b4 {[%emt 0:03:28]} Ne5 {[%emt 0:05:57]} 20. Nxe5 {[%emt 0:07:13]} Qxe5 {[%emt 0:00:03]} 21. f4 {[%emt 0:00:20]} Qh5 {[%emt 0:09:21] [#]} 22. f5 $1 {[%emt 0:06:41]} exf5 {[%emt 0:06:48]} 23. Ng3 {[%emt 0:00:51][%csl LRf5,LRh5]} Qg5 {[%emt 0:00:33]} 24. Nxf5 {[%emt 0:01:17]} Ne7 {[%emt 0:04:46]} 25. Rc5 {[%emt 0:05:24]} Nxf5 {[%emt 0:01:34]} (25... b6 {with more complications.} 26. h4 Qf6 27. Nd4 Qd6) 26. Rcxf5 {[%emt 0:00:09]} Qe7 {[%emt 0:01:57]} 27. Qe2 {[%emt 0:00:01]} f6 {[%emt 0:01:14]} 28. e4 {[%emt 0:12:02]} Bg6 29. Rc5 b6 {[%emt 0:04:06]} 30. Rc6 {[%emt 0:02:37]} Kh7 {[%emt 0:00:59]} 31. Rfc1 {[%emt 0:01:18]} Qe5 {[%emt 0:01:08]} 32. Bb1 {[%emt 0:01:01]} Rd7 {[%emt 0:00:14]} 33. h3 {[%emt 0:00:48]} Rad8 {[%emt 0:00:17] Black has strong rooks and is better} 34. Qg4 {[%emt 0:00:15]} Re7 {[%emt 0:02:16]} 35. R6c4 {[%emt 0:00:57]} Rd2 {[%emt 0:00:19]} 36. h4 {[%emt 0:00:26]} Red7 {[%emt 0:00:34] Black has more active pieces.} 37. Rc8 {[%emt 0:00:35]} (37. Qf3 $17) 37... h5 $19 {[%emt 0:01:35]} 38. Qf3 {[%emt 0:00:00]} Qd4+ {[%emt 0:00:27]} ({Black should try} 38... R7d4 $19 {[%cal Rd4e4] ...Rxe4 would now be deadly.} 39. Re1 Rb2) 39. Kh2 $17 {[%emt 0:00:19] [#] Counterplay Black} Rb2 (39... Qb2 $1 $17 40. Kh3 Rf2) 40. Rf8 $2 {[%mdl 8192]} (40. Qg3 $15) 40... Qd6+ $19 {[%emt 0:01:42]} 41. e5 {[%emt 0:30:39]} Qxe5+ {[%emt 0:30:34] Weighted Error Value: White=0.51/Black=0.12 (very precise)   Loses game:     	White=1     	---        Mistake:       	White=1     	Black=2      Inaccurate:     	White=6     	Black=2      OK:         	White=8     	Black=15     Best:        	White=1     	Black=1} (41... Qxf8 $2 {perishes.} 42. Qxh5+ Kg8 43. Bxg6 $18 (43. Qxg6 Rxb1 44. Rxb1 Qb8 $11)) 0-1

[Event "FIDE WSTC Open 50 2025"]
[Site "Prague"]
[Date "2025.02.18"]
[Round "2.6"]
[White "Conquest, Stuart C"]
[Black "Jaksland, Tim"]
[Result "1/2-1/2"]
[Annotator "ChessBase"]
[ECO "E03"]
[WhiteElo "2513"]
[BlackElo "2143"]
[PlyCount "84"]
[EventDate "2025.02.17"]
[EventType "team-tourn"]
[EventCountry "CZE"]
[SourceTitle "playchess.com"]
[Source "ChessBase"]
[SourceQuality "1"]
[TimeControl "40/5400+30:1800+30"]

1. d4 {[%emt 0:00:17]} Nf6 {[%emt 0:00:09]} 2. c4 {[%emt 0:00:21]} e6 {[%emt 0:00:22]} 3. g3 {[%emt 0:01:03]} d5 {[%emt 0:00:49]} 4. Bg2 {[%emt 0:00:27]} dxc4 {[%emt 0:01:10]} 5. Qa4+ {[%emt 0:01:46]} Nbd7 {[%emt 0:02:49]} 6. Qxc4 {[%emt 0:01:53]} a6 {[%emt 0:02:31]} 7. Be3 {[%emt 0:02:10]} Bd6 {[%emt 0:04:11]} 8. Nh3 {[%emt 0:02:46]} O-O {[%emt 0:05:42]} 9. O-O {[%emt 0:02:27]} e5 {[%emt 0:04:30]} 10. Qc2 {[%emt 0:19:10]} Qe7 {[%emt 0:15:39]} 11. Nc3 {[%emt 0:04:21]} exd4 {[%emt 0:11:58]} 12. Bxd4 {[%emt 0:00:20]} Bc5 {[%emt 0:00:45]} 13. Rad1 {[%emt 0:08:55]} Bxd4 {[%emt 0:08:24]} 14. Rxd4 {[%emt 0:00:10]} Ne5 {[%emt 0:00:17]} 15. Nf4 {[%emt 0:05:50]} c6 {[%emt 0:03:24]} 16. Rfd1 {[%emt 0:14:51]} Rb8 {[%emt 0:02:02]} 17. b3 {[%emt 0:07:45]} Bd7 {[%emt 0:09:02]} 18. R1d2 {[%emt 0:05:27]} Rfc8 {[%emt 0:03:33]} 19. Qd1 {[%emt 0:05:15]} g6 {[%emt 0:05:00]} 20. h3 {[%emt 0:04:45]} Kg7 {[%emt 0:09:33]} 21. Ne4 {[%emt 0:02:15]} Nxe4 {[%emt 0:02:15]} 22. Rxe4 {[%emt 0:00:57]} Bf5 {[%emt 0:00:50]} 23. Re3 {[%emt 0:00:15]} Qf6 {[%emt 0:03:26]} 24. Rd4 {[%emt 0:03:01]} Re8 {[%emt 0:01:20]} 25. g4 {[%emt 0:04:20]} Rbd8 {[%emt 0:00:20]} 26. Rxd8 {[%emt 0:00:21]} Rxd8 {[%emt 0:00:06]} 27. Qc1 {[%emt 0:00:11]} Bxg4 {[%emt 0:00:59]} 28. hxg4 {[%emt 0:01:07]} Qxf4 {[%emt 0:00:14]} 29. Qa1 {[%emt 0:01:40]} f6 {[%emt 0:00:16]} 30. Re4 {[%emt 0:00:09]} Qd2 {[%emt 0:00:15]} 31. g5 {[%emt 0:00:32]} Qd1+ {[%emt 0:02:21]} 32. Qxd1 {[%emt 0:00:04]} Rxd1+ {[%emt 0:00:03]} 33. Kh2 {[%emt 0:00:09]} Kf7 {[%emt 0:01:22]} 34. Rh4 {[%emt 0:00:59]} Kg7 {[%emt 0:00:53]} 35. gxf6+ {[%emt 0:00:19]} Kxf6 {[%emt 0:00:05]} 36. Rxh7 {[%emt 0:00:16]} Rd2 {[%emt 0:00:30]} 37. f4 {[%emt 0:01:38]} Nf7 {[%emt 0:00:22]} 38. e4 {[%emt 0:00:18]} Rxa2 {[%emt 0:00:44]} 39. e5+ {[%emt 0:00:15]} Ke7 {[%emt 0:00:45]} 40. Kg3 {[%emt 0:01:09]} Rb2 {[%emt 0:00:31]} 41. Bh3 {[%emt 0:12:21]} Rxb3+ {[%emt 0:01:41]} 42. Kf2 {[%emt 0:02:38]} Rb2+ {[%emt 0:12:51]} 1/2-1/2